bitfinex/quotes_ETHUSD_20251212
["timestamp","ask_amount","ask_price","bid_price","bid_amount"]
[1765519203623,0.4991,3248.6,3248.5,3.56334385]
[1765519203778,0.002,3248.7,3248.5,3.56624385]
[1765519204095,0.002,3248.7,3248.6,0.0029]
[1765519205747,0.002,3248.7,3248.6,0.0058]
[1765519205879,0.002,3248.7,3248.6,0.0029]
[1765519207077,0.002,3248.7,3248.6,1.26992037]
[1765519207403,0.002,3248.7,3248.6,8.96330517]
[1765519207569,0.002,3248.7,3248.6,12.04155426]
[1765519209691,0.002,3248.7,3248.6,12.16474736]
[1765519210988,0.002,3248.7,3248.6,12.57025136]
[1765519212206,0.002,3248.7,3248.6,23.44383136]
[1765519212517,0.002,3248.7,3248.6,11.73980536]
[1765519213282,0.002,3248.7,3248.6,16.00548236]
[1765519214221,0.002,3248.7,3248.6,5.42655936]
[1765519214423,0.002,3248.7,3248.6,17.06949736]
[1765519215087,0.002,3248.7,3248.6,17.06659736]
[1765519215291,0.002,3248.7,3248.6,5.01815536]
[1765519216322,0.002,3248.9,3248.6,5.01815536]
[1765519216323,0.002,3248.9,3248.7,0.98887929]
[1765519216497,0.002,3249.8,3249.1,0.405504]
[1765519216812,0.002,3249.8,3249.1,28.45791009]
[1765519217404,0.002,3249.8,3249.1,37.16265609]
[1765519217607,0.002,3249.8,3249.1,30.16883146]
[1765519217817,0.4804,3249.7,3249.1,30.17173146]
[1765519218026,0.4752,3249.2,3249.1,4.08264844]
[1765519218317,0.9536,3249.2,3249.1,4.14325067]
[1765519220751,0.9536,3249.2,3249.1,3.56277538]
[1765519223056,0.9536,3249.2,3249.1,0.485]
[1765519223452,0.9536,3249.2,3249.0,3.07786495]
[1765519223738,0.002,3249.2,3249.1,3.07777538]
[1765519223914,0.002,3249.2,3249.1,3.08067538]
[1765519224116,0.002,3249.2,3249.1,4.12677798]
[1765519224314,0.002,3249.2,3249.1,4.15465573]
[1765519224541,0.002,3249.2,3249.1,4.15755573]
[1765519224732,0.002,3249.2,3249.1,6.09700026]
[1765519225007,0.002,3249.2,3249.1,6.06622251]
[1765519225224,0.002,3249.7,3249.2,0.98597929]
[1765519225425,0.002,3249.7,3249.2,31.50855609]
[1765519225604,0.002,3249.7,3249.2,31.11352629]
[1765519225805,0.002,3249.7,3249.2,34.17125623]
[1765519226217,0.002,3249.7,3249.2,32.20360723]
[1765519227011,0.002,3249.7,3249.2,33.16544388]
[1765519227219,0.002,3249.7,3249.2,7.61318988]
[1765519227516,0.002,3249.7,3249.2,22.99594788]
[1765519227726,0.002,3249.7,3249.2,22.99304788]
[1765519227926,0.4752,3249.3,3249.2,12.40176268]
[1765519228117,0.4752,3249.3,3249.2,12.88776268]
[1765519228637,0.002,3249.3,3249.2,12.88776268]
[1765519229009,0.4752,3249.3,3249.2,3.65815594]
[1765519229232,0.4752,3249.3,3249.2,9.24955745]
[1765519229439,0.9536,3249.3,3249.2,9.24955745]
[1765519229741,0.9536,3249.3,3249.2,3.56368065]
[1765519229909,0.9536,3249.3,3249.2,9.24659233]
[1765519230112,0.9536,3249.3,3249.2,0.486]
[1765519230306,0.9536,3249.3,3249.0,3.07783863]
[1765519230509,0.9536,3249.3,3249.1,3.07777538]
[1765519230510,0.4784,3249.2,3249.1,3.07777538]
[1765519230911,0.002,3249.3,3249.2,3.07768065]
[1765519231117,0.002,3249.3,3249.2,5.68291168]
[1765519231336,0.4752,3249.3,3249.2,5.68291168]
[1765519231926,0.4752,3249.3,3249.0,11.8386519]
[1765519232513,0.4732,3249.1,3249.0,3.07787011]
[1765519232910,0.9516,3249.1,3249.0,3.07787011]
[1765519233709,0.9516,3249.1,3249.0,8.76078179]
[1765519234435,0.9516,3249.1,3249.0,5.68291168]
[1765519235341,0.9516,3249.1,3249.0,8.76078179]
[1765519235847,0.9516,3249.1,3249.0,3.07787011]
[1765519236255,0.9516,3249.1,3249.0,8.76078179]
[1765519236619,0.002,3249.3,3249.0,11.8415519]
[1765519236835,0.4804,3249.3,3249.0,11.8415519]
[1765519237047,0.4732,3249.1,3249.0,8.76078179]
[1765519238044,0.9516,3249.1,3249.0,8.76078179]
[1765519238743,0.9516,3249.1,3249.0,3.07787011]
[1765519238921,0.4732,3249.1,3249.0,3.07787011]
[1765519239122,0.002,3249.3,3249.0,6.18941892]
[1765519239322,0.4804,3249.3,3249.2,8.76137431]
[1765519239532,0.9536,3249.3,3249.2,8.76137431]
[1765519241123,0.9536,3249.3,3249.1,3.07776439]
[1765519241324,0.4784,3249.2,3249.1,3.07776439]
[1765519241535,0.9516,3249.2,3249.0,3.07787011]
[1765519241735,0.4784,3249.2,3249.0,3.07787011]
[1765519241933,0.4732,3249.1,3249.0,3.07787011]
[1765519242449,0.9516,3249.1,3249.0,3.07787011]
[1765519243726,0.9516,3249.1,3248.9,9.24762446]
[1765519243937,0.9525,3249.0,3248.9,0.486]
[1765519244126,0.9525,3249.0,3248.9,3.56396484]
[1765519246041,0.9525,3249.0,3248.9,0.486]
[1765519247150,0.9525,3249.0,3248.9,3.56396484]
[1765519247454,0.9525,3249.0,3248.9,0.486]
[1765519251139,0.9525,3249.0,3248.9,3.56396484]
[1765519251547,0.9525,3249.0,3248.9,0.486]
[1765519252554,0.9525,3249.0,3248.4,5.68369366]
[1765519252858,0.6534,3248.9,3248.6,0.486]
[1765519253366,0.4815,3248.7,3248.6,3.56424681]
[1765519253734,0.9525,3248.7,3248.6,0.486]
[1765519253939,0.9525,3248.7,3248.6,3.56424909]
[1765519257144,0.002,3249.3,3248.6,12.99626041]
[1765519257145,0.471,3249.2,3248.6,12.99626041]
[1765519257334,0.471,3249.2,3248.8,0.0029]
[1765519257540,0.471,3249.2,3248.6,9.24794275]
[1765519257742,0.4815,3248.7,3248.6,9.24794275]
[1765519258273,0.9525,3248.7,3248.6,9.24794275]
[1765519258680,0.9525,3248.7,3248.6,3.56424909]
[1765519260496,0.4815,3248.7,3248.6,3.56424909]
[1765519261347,0.1824,3248.8,3248.6,3.56424909]
[1765519261548,0.4815,3248.7,3248.6,0.486]
[1765519261877,0.4815,3248.7,3248.6,3.56424909]
[1765519262104,0.9525,3248.7,3248.6,3.56424909]
[1765519262278,0.9525,3248.7,3248.6,0.486]
[1765519262781,0.9525,3248.7,3248.6,3.56424909]
[1765519263180,0.9525,3248.7,3248.6,0.486]
[1765519263684,0.9525,3248.7,3248.6,3.56424909]
[1765519263880,0.9525,3248.7,3248.0,3.07872713]
[1765519264178,0.4815,3248.1,3248.0,0.486]
[1765519264488,0.4815,3248.1,3248.0,3.56481773]
[1765519264683,0.9525,3248.1,3248.0,3.56481773]
[1765519266099,0.543225,3248.1,3248.0,3.56481773]
[1765519267110,0.072225,3248.1,3248.0,3.56481773]
[1765519267481,0.471,3248.5,3248.0,12.73952912]
[1765519269901,0.6534,3248.8,3248.1,0.4122]
[1765519270110,0.471,3248.7,3248.1,0.4122]
[1765519270281,0.471,3248.7,3248.2,6.15725632]
[1765519270483,0.471,3248.7,3248.2,3.07862816]
[1765519272008,0.4815,3248.3,3248.2,3.07862816]
[1765519272379,0.9525,3248.3,3248.1,3.07872294]
[1765519272581,0.471,3248.6,3248.2,0.4122]
[1765519272792,0.471,3248.6,3248.1,6.15744588]
[1765519273624,0.471,3248.6,3248.1,3.07872294]
[1765519273810,0.4747,3248.2,3248.1,3.07872294]
[1765519274625,0.9446,3248.2,3248.1,3.07872294]
[1765519276719,0.4747,3248.2,3248.1,3.07872294]
[1765519276923,0.477,3248.4,3248.1,6.56964588]
[1765519277136,0.4523,3248.2,3248.1,3.07872294]
[1765519278127,0.9293,3248.2,3248.1,3.07872294]
[1765519278619,0.477,3248.5,3248.1,3.49092294]
[1765519278823,0.477,3248.7,3248.1,6.56964588]
[1765519279120,0.477,3248.7,3248.1,6.70704588]
[1765519279493,0.477,3248.7,3248.1,6.56964588]
[1765519279891,0.477,3248.7,3248.1,6.70704588]
[1765519280836,0.1824,3248.8,3248.3,5.68369366]
[1765519281054,0.1838,3249.0,3248.3,5.68369366]
[1765519281237,0.1838,3249.0,3248.3,6.09589366]
[1765519281438,0.477,3248.9,3248.3,6.09788987]
[1765519281833,0.477,3248.9,3248.3,0.4122]
[1765519282157,0.477,3248.9,3248.2,5.68568987]
[1765519283152,0.477,3248.9,3248.3,6.15706676]
[1765519283346,0.1838,3249.0,3248.3,6.15706676]
[1765519283547,0.477,3248.9,3248.3,6.15706676]
[1765519284761,0.1838,3249.0,3248.5,5.68568987]
[1765519284962,0.6608,3249.0,3248.4,0.8982]
[1765519287258,0.6608,3249.0,3248.5,3.07834385]
[1765519287440,0.477,3248.9,3248.5,3.07834385]
[1765519287637,0.4523,3248.6,3248.2,0.6608]
[1765519287944,0.4523,3248.3,3247.7,0.001]
[1765519288137,0.6361,3247.8,3247.7,0.001]
[1765519288562,1.1131,3247.8,3247.7,0.001]
[1765519289346,4.19210732,3247.8,3247.7,0.001]
[1765519289549,4.61131805,3247.8,3247.7,0.001]
[1765519290151,1.53231073,3247.8,3247.7,0.001]
[1765519290537,1.1131,3247.8,3247.7,0.001]
[1765519291468,4.19210732,3247.8,3247.7,0.001]
[1765519293375,4.67810732,3247.8,3247.7,0.001]
[1765519293578,11.35519168,3247.8,3247.7,0.001]
[1765519293740,4.77258261,3247.8,3247.7,0.001]
[1765519293947,6.04372317,3247.8,3247.7,0.001]
[1765519296285,5.55772317,3247.8,3247.7,0.001]
[1765519296470,6.04372317,3247.8,3247.7,0.001]
[1765519299995,11.76564503,3247.8,3247.7,0.001]
[1765519300159,11.73482824,3247.8,3247.7,0.001]
[1765519300564,5.55772317,3247.8,3247.7,0.001]
[1765519300888,6.04372317,3247.8,3247.7,0.001]
[1765519304709,2.47871585,3247.8,3247.7,0.001]
[1765519304868,0.486,3247.8,3247.7,0.4132]
[1765519305487,0.9712,3247.8,3247.7,0.001]
[1765519306409,0.95812731,3248.5,3247.7,0.4132]
[1765519306612,7.13827722,3248.4,3247.7,0.8254]
[1765519306795,0.76010045,3248.3,3247.7,0.8254]
[1765519307102,1.25550045,3248.3,3247.7,0.8254]
[1765519307407,3.83871005,3248.3,3247.7,0.4132]
[1765519307581,0.4974,3249.3,3248.2,0.5496]
[1765519307911,0.486,3249.2,3248.3,0.4122]
[1765519308095,0.486,3249.2,3248.3,0.8244]
[1765519308280,0.9814,3249.2,3248.3,0.8244]
[1765519308480,0.9814,3249.2,3248.4,0.4122]
[1765519309589,0.9814,3249.2,3248.5,3.07834385]
[1765519309767,4.0590828,3249.2,3248.5,3.07834385]
[1765519310099,3.5730828,3249.2,3248.5,3.07834385]
[1765519310298,0.486,3249.1,3248.4,3.49062713]
[1765519310502,0.9814,3249.1,3248.4,3.49062713]
[1765519311308,0.9814,3249.1,3248.4,4.21103164]
[1765519311875,0.486,3249.0,3248.4,4.21103164]
[1765519312101,3.07960215,3249.3,3248.4,4.21103164]
[1765519312102,0.002,3249.3,3249.0,0.4122]
[1765519312300,0.002,3249.3,3249.2,0.4122]
[1765519312521,0.488,3249.3,3249.2,0.4122]
[1765519314111,0.002,3249.3,3249.2,0.4122]
[1765519314314,0.002,3249.3,3249.2,3.48988065]
[1765519315808,0.002,3249.3,3249.2,0.4122]
[1765519316200,0.002,3249.3,3249.0,3.07786636]
[1765519316708,0.002,3249.3,3248.9,3.20116944]
[1765519317009,0.4974,3249.3,3248.9,3.20116944]
[1765519317175,0.4974,3249.3,3248.9,0.12320562]
[1765519317176,0.4852,3249.0,3248.9,0.12320562]
[1765519317380,0.4852,3249.0,3248.2,0.1374]
[1765519317381,0.4852,3249.0,3248.5,3.07833675]
[1765519317601,0.9806,3249.0,3248.5,3.59515354]
[1765519317883,0.1966,3248.9,3248.5,3.07833675]
[1765519318088,0.692,3248.9,3248.3,3.07853338]
[1765519318302,0.692,3248.9,3248.4,0.92418167]
[1765519319099,0.486,3248.8,3248.4,0.92418167]
[1765519319508,0.486,3248.8,3248.7,0.4122]
[1765519321285,0.9712,3248.8,3248.5,3.07833863]
[1765519321487,0.9814,3248.8,3248.4,0.92418167]
[1765519321682,0.4954,3248.7,3248.2,0.1374]
[1765519321896,0.4954,3248.7,3248.2,4.00283275]
[1765519322313,0.4954,3248.7,3248.3,3.07848827]
[1765519322515,0.002,3249.3,3248.3,3.07848827]
[1765519322516,0.002,3249.9,3249.7,0.4122]
[1765519322737,0.4954,3252.8,3250.6,30.0]
[1765519322890,0.4954,3253.3,3252.4,5.68787918]
[1765519323087,0.4954,3253.3,3252.5,5.50055177]
[1765519323341,0.4954,3253.3,3251.7,0.95888141]
[1765519323342,0.4852,3252.6,3252.3,0.58047529]
[1765519323625,3.52099184,3252.5,3252.4,0.488]
[1765519323833,0.1966,3254.0,3252.4,0.5691]
[1765519323983,0.4954,3253.4,3252.4,0.8795492]
[1765519324184,0.4954,3253.4,3252.4,3.95411494]
[1765519326088,0.4954,3253.4,3252.4,7.0287675]
[1765519326314,0.4954,3253.4,3252.5,1.5312026]
[1765519326832,0.4954,3253.4,3252.6,0.488]
[1765519327385,0.4954,3254.8,3252.7,0.46272731]
[1765519327596,0.1966,3255.2,3253.2,0.58047529]
[1765519327597,0.4954,3254.7,3253.2,0.58047529]
[1765519327890,0.4954,3254.7,3253.3,0.488]
[1765519328324,0.1966,3255.2,3253.5,0.58047529]
[1765519328508,0.4954,3254.8,3253.6,0.488]
[1765519329016,0.1966,3255.2,3253.6,0.488]
[1765519329017,0.692,3255.2,3253.6,0.488]
[1765519329235,0.4954,3255.1,3253.7,21.613913]
[1765519329402,0.4954,3255.1,3253.7,1.06847529]
[1765519329591,0.4954,3255.1,3253.8,0.98099248]
[1765519329811,0.4954,3255.1,3253.9,0.488]
[1765519330199,3.26778713,3256.1,3254.4,6.14552604]
[1765519330399,3.26778713,3256.1,3254.5,1.06847529]
[1765519330400,0.4954,3255.7,3254.5,1.06847529]
[1765519330807,0.4954,3255.7,3254.5,0.58047529]
[1765519331013,0.4954,3255.7,3254.6,1.41039151]
[1765519331736,0.692,3256.1,3254.8,0.46272731]
[1765519332101,0.4954,3256.0,3254.9,0.488]
[1765519332296,0.4954,3256.0,3255.0,0.488]
[1765519332500,0.4954,3256.0,3254.6,1.38511882]
[1765519332710,3.56670929,3256.0,3254.8,0.58047529]
[1765519332913,0.37633093,3255.9,3254.8,0.58047529]
[1765519333199,0.479,3254.9,3254.6,0.92239151]
[1765519333624,0.479,3254.9,3254.7,0.488]
[1765519334128,0.6785,3254.9,3254.6,0.92239151]
[1765519334328,1.1604,3254.9,3254.7,0.488]
[1765519335132,0.9609,3254.8,3254.6,0.92239151]
[1765519335335,0.479,3254.7,3254.3,3.07284137]
[1765519335507,0.9609,3254.7,3254.4,0.488]
[1765519335844,0.4819,3255.3,3254.1,0.92239151]
[1765519336005,0.4819,3255.3,3254.5,0.488]
[1765519336419,0.85683093,3255.9,3254.7,0.58047529]
[1765519336696,0.4805,3255.9,3254.7,0.58047529]
[1765519336896,0.4805,3255.9,3255.0,0.46272731]
[1765519337233,0.4805,3255.9,3255.1,0.488]
[1765519337635,0.4805,3255.9,3255.2,0.4805]
[1765519338442,0.4805,3256.4,3255.2,0.4805]
[1765519338623,0.002,3256.5,3255.4,0.58047529]
[1765519339451,0.002,3256.5,3255.7,0.46272731]
[1765519339753,3.55328753,3256.5,3255.8,0.488]
[1765519340250,0.4805,3256.4,3255.8,0.4805]
[1765519340407,0.35532875,3256.3,3255.7,0.488]
[1765519340809,0.4805,3256.3,3255.7,0.488]
[1765519341313,0.4805,3256.3,3255.5,0.9221335]
[1765519341505,0.4805,3256.3,3255.6,0.488]
[1765519342144,0.002,3256.5,3255.8,3.0714209]
[1765519342735,0.002,3256.5,3255.9,0.488]
[1765519342736,0.4825,3256.5,3255.9,0.488]
[1765519343321,0.37388913,3256.4,3255.9,0.488]
[1765519343850,0.4805,3256.3,3255.6,3.53433304]
[1765519344139,0.4805,3256.3,3255.5,0.9221335]
[1765519344317,0.4805,3256.3,3255.6,0.488]
[1765519344520,0.4805,3256.3,3255.5,0.9221335]
[1765519344725,0.4805,3256.3,3255.7,0.488]
[1765519345231,3.55150121,3256.3,3255.7,0.488]
[1765519345427,0.4545,3255.8,3255.5,0.9221335]
[1765519345631,0.4545,3255.8,3255.6,0.487]
[1765519345831,0.4545,3255.8,3255.5,0.9221335]
[1765519346009,0.1857,3255.9,3255.2,4.11512761]
[1765519346210,0.39253903,3256.2,3255.2,4.11512761]
[1765519346211,0.87303903,3256.2,3255.6,3.07156683]
[1765519346434,0.87303903,3256.2,3255.3,0.487]
[1765519346435,0.4805,3256.2,3255.5,3.07169811]
[1765519346642,0.4805,3256.1,3255.5,3.07169811]
[1765519347017,0.4805,3256.1,3255.4,6.72411355]
[1765519347251,0.4805,3256.1,3255.4,3.65229442]
[1765519347737,0.4805,3256.1,3255.4,7.21111355]
[1765519348345,0.4805,3256.1,3255.4,4.13929442]
[1765519348747,0.4805,3256.1,3255.4,7.21111355]
[1765519349658,0.4805,3256.1,3255.4,4.13929442]
[1765519351932,0.4805,3256.1,3255.4,3.65229442]
[1765519352353,0.4805,3256.1,3255.4,0.58047529]
[1765519352538,0.4805,3256.1,3255.4,3.65229377]
[1765519352740,0.6402,3255.5,3255.0,3.07217791]
[1765519352958,0.6402,3255.5,3254.4,0.46272731]
[1765519352959,0.4545,3255.4,3254.4,0.46272731]
[1765519353158,0.4545,3255.4,3254.9,3.65273624]
[1765519353347,0.4545,3255.4,3254.4,0.46272731]
[1765519353348,0.4545,3255.4,3255.0,3.07212719]
[1765519353547,0.935,3255.4,3255.0,3.65267191]
[1765519353940,3.07134846,3255.9,3255.0,3.65267191]
[1765519353941,0.4805,3255.7,3255.0,3.65267191]
[1765519354138,0.4805,3255.8,3255.0,4.13967191]
[1765519354330,0.4805,3255.8,3255.0,3.65267191]
[1765519354750,0.4545,3255.1,3254.4,0.46272731]
[1765519354936,0.4545,3255.1,3254.5,0.487]
[1765519355529,0.4545,3255.1,3254.6,3.07255824]
[1765519355751,0.4545,3255.1,3254.6,6.14513244]
[1765519355929,0.4805,3255.3,3254.7,0.58047529]
[1765519356130,0.487,3255.8,3254.7,0.58047529]
[1765519356131,0.4805,3255.6,3254.7,0.58047529]
[1765519356462,0.487,3255.8,3254.7,1.0432026]
[1765519356770,0.487,3255.8,3254.9,0.46272731]
[1765519356965,0.9675,3255.8,3255.0,0.487]
[1765519357550,0.4805,3255.7,3255.0,0.487]
[1765519357750,0.4805,3255.7,3255.1,3.07210223]
[1765519357951,0.4805,3255.7,3254.9,3.07229079]
[1765519358155,0.4545,3255.0,3254.9,3.55929079]
[1765519358744,0.40389424,3255.6,3255.0,3.07219567]
[1765519358968,0.4805,3255.5,3255.0,3.07219567]
[1765519359170,0.4545,3255.1,3255.0,3.07219567]
[1765519359872,0.4805,3255.5,3254.9,6.144582]
[1765519360358,0.4805,3255.5,3254.9,6.631582]
[1765519360750,0.487,3255.8,3255.0,0.46272731]
[1765519361069,0.1857,3255.9,3255.0,0.46272731]
[1765519361070,0.6662,3255.9,3255.0,0.46272731]
[1765519362260,0.6662,3255.9,3255.2,0.58047529]
[1765519362731,0.1857,3255.9,3255.3,0.487]
[1765519362932,0.4805,3256.2,3255.3,0.487]
[1765519364365,0.4805,3256.2,3255.4,6.14363826]
[1765519364770,0.4805,3256.2,3255.5,0.487]
[1765519365946,0.4871,3256.5,3255.5,1.06747529]
[1765519366138,0.4871,3256.5,3255.5,1.5302026]
[1765519366536,0.4871,3256.5,3255.6,6.14326084]
[1765519366965,0.002,3256.5,3255.7,1.0432026]
[1765519367170,0.002,3256.5,3255.9,0.46272731]
[1765519367370,0.002,3256.5,3256.0,0.487]
[1765519367773,0.002,3256.5,3255.9,0.46272731]
[1765519367774,0.4851,3256.4,3255.9,0.46272731]
[1765519367975,0.4851,3256.4,3255.7,0.58047529]
[1765519368148,0.4851,3256.4,3255.8,0.487]
[1765519368353,0.4851,3256.4,3255.9,0.487]
[1765519368551,0.4851,3256.4,3256.0,3.07125307]
[1765519368951,0.4579,3256.1,3256.0,0.487]
[1765519370243,0.002,3256.5,3256.0,0.66296896]
[1765519370454,0.002,3257.9,3256.1,0.487]
[1765519370455,0.19292494,3257.0,3256.1,0.487]
[1765519370655,0.19292494,3257.0,3256.4,0.0037]
[1765519370862,0.67802494,3257.0,3256.4,0.0037]
[1765519371268,0.002,3257.1,3256.9,0.0037]
[1765519371468,0.002,3257.1,3257.0,0.0037]
[1765519371859,0.002,3257.1,3257.0,0.4907]
[1765519372579,0.002,3257.1,3257.0,3.5647101]
[1765519372884,0.002,3257.1,3257.0,3.5610101]
[1765519373250,0.002,3257.1,3257.0,3.0703101]
[1765519373467,0.002,3257.1,3256.9,3.55737987]
[1765519373778,0.002,3257.1,3256.8,1.06747529]
[1765519373956,0.002,3257.1,3256.8,3.5574969]
[1765519374276,0.4579,3256.9,3256.6,3.07068394]
[1765519374444,0.6412,3256.9,3256.6,3.07068394]
[1765519374777,1.1263,3256.9,3256.6,3.07068394]
[1765519374979,0.4579,3256.7,3256.5,3.07078151]
[1765519375155,0.4579,3256.7,3255.8,0.0037]
[1765519375352,0.4579,3256.7,3256.3,3.07088211]
[1765519375580,0.4579,3256.7,3256.4,3.0708703]
[1765519375885,0.4851,3256.6,3256.4,3.07085007]
[1765519376252,0.4851,3256.6,3256.3,3.07094469]
[1765519376473,0.4851,3256.6,3256.4,3.07086411]
[1765519376870,0.4579,3256.5,3256.4,3.07086411]
[1765519377056,0.1833,3256.9,3256.3,3.07097011]
[1765519377268,0.1833,3256.9,3256.4,0.0037]
[1765519377577,0.4851,3256.8,3256.4,0.0037]
[1765519379083,0.4851,3256.8,3256.3,3.6514454]
[1765519379785,0.4851,3256.8,3256.3,0.58047529]
[1765519379786,0.4579,3256.4,3256.3,0.58047529]
[1765519379954,0.4579,3256.4,3256.3,3.6514454]
[1765519380285,0.943,3256.4,3256.0,0.58047529]
[1765519380581,0.4579,3256.1,3255.8,3.07141899]
[1765519380881,0.4579,3256.1,3254.4,10.60329382]
[1765519381099,0.4851,3256.0,3255.4,3.07178875]
[1765519381284,0.4579,3255.5,3255.0,0.58047529]
[1765519381582,0.1833,3255.9,3255.2,6.14401572]
[1765519381880,0.1833,3255.9,3255.4,0.0037]
[1765519382250,0.4851,3255.8,3255.4,0.00079101]
[1765519382674,0.4579,3255.5,3255.3,0.58047529]
[1765519382899,0.4579,3255.5,3255.3,0.57770029]
[1765519383270,0.4579,3255.5,3255.3,0.57479085]
[1765519383670,0.4811,3255.8,3255.0,0.487]
[1765519383671,0.4811,3255.8,3255.4,6.14363826]
[1765519383890,0.4771,3255.8,3255.4,6.14072882]
[1765519384271,0.4731,3255.8,3255.4,6.14072882]
[1765519384497,0.4731,3255.8,3255.4,6.13781938]
[1765519384660,0.4691,3255.8,3255.4,6.13781938]
[1765519386181,0.4691,3255.8,3255.3,0.58047529]
[1765519388455,0.4691,3255.8,3255.4,3.07181913]
[1765519388980,0.4579,3255.5,3255.4,3.65229442]
[1765519390088,0.4691,3255.8,3255.4,3.66909442]
[1765519390268,0.4691,3255.8,3255.4,6.74091355]
[1765519391686,0.1833,3255.9,3255.4,6.74091355]
[1765519391888,0.6684,3255.9,3255.4,6.74091355]
[1765519392390,0.4851,3255.8,3255.4,6.74091355]
[1765519393170,0.9729,3256.2,3255.7,0.0168]
[1765519393368,0.9729,3256.2,3255.8,0.0168]
[1765519393369,0.487,3256.2,3255.8,0.0168]
[1765519393784,0.9729,3256.2,3255.8,0.0168]
[1765519394588,0.1833,3256.9,3256.1,0.0168]
[1765519394756,0.4859,3256.8,3256.1,0.0168]
[1765519395390,0.4769,3256.2,3256.1,3.07111754]
[1765519395559,0.4859,3256.8,3256.1,3.07111754]
[1765519395763,0.4859,3256.7,3256.1,3.07111754]
[1765519395962,0.4769,3256.2,3256.1,3.07111754]
[1765519396187,0.4769,3256.2,3255.3,0.0168]
[1765519396188,0.4769,3256.2,3255.7,0.487]
[1765519396489,0.4813,3256.0,3255.8,3.07144173]
[1765519397265,0.4809,3256.2,3255.9,0.0168]
[1765519397466,0.4809,3256.4,3255.9,0.0168]
[1765519398295,0.4809,3256.4,3255.8,0.58047529]
[1765519398593,0.47322494,3256.4,3255.8,0.58047529]
[1765519399667,0.47322494,3256.4,3255.9,3.0713474]
[1765519401294,0.47322494,3256.4,3255.9,6.1426948]
[1765519401966,0.4809,3256.4,3255.8,0.58047529]
[1765519403862,0.4813,3255.9,3255.8,3.65189378]
[1765519404174,0.4809,3256.4,3255.8,6.14286022]
[1765519404367,0.4809,3256.3,3255.8,6.14286022]
[1765519404767,0.4809,3256.3,3255.8,3.07141849]
[1765519404997,0.4813,3255.9,3255.8,3.07141849]
[1765519405876,0.4813,3255.9,3255.7,3.0715235]
[1765519406380,0.4813,3255.9,3255.7,3.99360599]
[1765519407406,0.4813,3255.9,3255.7,3.0715235]
[1765519408194,0.4809,3256.1,3255.7,6.14305957]
[1765519408395,0.4809,3256.1,3255.8,0.0245]
[1765519408696,0.4809,3256.4,3255.8,0.0245]
[1765519408898,0.4809,3256.4,3256.0,0.0245]
[1765519410100,0.4813,3256.1,3256.0,3.07123345]
[1765519410507,0.9622,3256.1,3256.0,3.07123345]
[1765519410805,0.4813,3256.1,3256.0,3.07123345]
[1765519411175,0.1833,3256.9,3256.0,3.09573345]
[1765519411374,0.4809,3256.7,3256.0,3.09573345]
[1765519411782,0.4809,3256.7,3256.0,3.07123345]
[1765519412071,0.4813,3256.1,3256.0,3.07123345]
[1765519412273,0.4813,3256.1,3255.7,6.14307214]
[1765519412486,0.9622,3256.1,3255.7,6.14307214]
[1765519414497,0.9622,3256.1,3255.7,3.07153607]
[1765519414699,0.9622,3256.1,3255.7,0.58047529]
[1765519415919,0.4809,3256.0,3255.7,0.58047529]
[1765519416317,0.4809,3256.0,3255.7,3.07147859]
[1765519416500,0.4809,3256.0,3255.7,3.65195388]
[1765519417000,0.4809,3256.0,3255.7,0.58047529]
[1765519417192,0.4809,3256.0,3255.7,3.65199507]
[1765519417394,0.4813,3255.8,3255.7,0.58047529]
[1765519417607,0.4809,3256.0,3255.7,0.58047529]
[1765519418395,0.4809,3256.0,3255.7,3.65199934]
[1765519418590,0.4809,3256.0,3255.7,0.58047529]
[1765519418912,0.4813,3255.8,3255.7,0.58047529]
[1765519419108,0.4813,3255.8,3255.7,3.65201136]
[1765519419286,0.4813,3255.8,3255.7,0.58047529]
[1765519419916,0.9622,3255.8,3254.8,0.0245]
[1765519420119,0.4813,3255.7,3254.4,0.001]
[1765519420316,0.4809,3255.6,3255.1,0.92224406]
[1765519420518,3.07172477,3255.5,3254.6,0.58047529]
[1765519420731,0.35526248,3255.4,3254.6,0.4813]
[1765519420891,0.83616248,3255.4,3254.5,0.58047529]
[1765519421092,0.83616248,3255.4,3254.5,3.07266541]
[1765519421288,0.4809,3255.3,3254.5,0.92240285]
[1765519421491,0.4809,3255.3,3254.4,0.001]
[1765519422028,0.4809,3255.3,3254.6,3.07255163]
[1765519422330,0.9679,3255.6,3254.8,3.07236278]
[1765519422495,3.07172477,3255.5,3254.7,3.07247979]
[1765519422691,3.55262477,3255.5,3254.7,3.07247979]
[1765519422912,0.4809,3255.4,3254.7,3.07247979]
[1765519423117,0.4778,3254.8,3254.6,3.07254435]
[1765519423322,0.4809,3255.4,3254.6,4.57539413]
[1765519423520,4.05352477,3255.5,3254.7,0.0245]
[1765519423697,0.4948,3255.4,3254.7,0.0245]
[1765519424596,3.07191349,3255.3,3254.7,0.0245]
[1765519424796,3.56664566,3255.4,3254.7,0.0245]
[1765519424996,0.4948,3255.3,3254.7,0.0245]
[1765519425812,0.4948,3255.3,3254.7,0.94687449]
[1765519426824,3.07200786,3255.2,3254.7,0.94687449]
[1765519426998,3.73587321,3255.2,3254.7,0.94687449]
[1765519427193,0.487,3255.5,3254.7,0.92237449]
[1765519427523,0.487,3255.5,3254.7,3.99484742]
[1765519427524,3.55875581,3255.5,3254.7,3.99484742]
[1765519427703,3.55875581,3255.5,3254.8,0.0245]
[1765519428306,4.05355581,3255.5,3254.8,0.0245]
[1765519428798,4.05355581,3255.5,3254.7,3.99484742]
[1765519428993,0.4948,3255.4,3254.7,0.92237449]
[1765519429401,0.4948,3255.4,3254.4,0.001]
[1765519429402,0.6718,3254.8,3254.4,0.001]